[Event "33rd Croatian Junior League 2024"]
[Site "Novalja"]
[Date "2024.04.04"]
[Round "5.3"]
[White "Mazuran, Gabrijel"]
[Black "Matosin, Jurica"]
[Result "1/2-1/2"]
[ECO "E04"]
[WhiteElo "2054"]
[BlackElo "1928"]
[Annotator "RC"]
[PlyCount "58"]
[EventDate "2024.03.28"]
[EventType "team-tourn"]
[EventCountry "CRO"]
[SourceTitle "playchess.com"]
[Source "ChessBase"]
[SourceQuality "1"]
[TimeControl "5400+30"]

1. d4 {[%emt 0:00:04]} d5 {[%emt 0:00:10]} 2. c4 {[%emt 0:00:06]} e6 {[%emt 0:00:06]} 3. Nf3 {[%emt 0:00:08]} Nf6 {[%emt 0:00:06]} 4. g3 {[%emt 0:00:11]} a6 {[%emt 0:00:13]} 5. Bg2 {[%emt 0:09:24]} dxc4 {[%emt 0:00:45]} 6. Ne5 {[%emt 0:02:49]} c5 {[%emt 0:00:17]} 7. e3 {[%emt 0:01:50]} Ra7 {[%emt 0:13:57]} 8. Nxc4 {[%emt 0:01:36]} b5 {[%emt 0:01:17]} 9. Ne5 {[%emt 0:00:12]} Bb7 {[%emt 0:01:02]} 10. Bxb7 {[%emt 0:07:04]} Rxb7 {[%emt 0:00:17]} 11. dxc5 {[%emt 0:03:50]} Qxd1+ {[%emt 0:00:54]} 12. Kxd1 {[%emt 0:00:02]} Bxc5 {[%emt 0:00:23]} 13. Ke2 {[%emt 0:00:32]} O-O {[%emt 0:01:06]} 14. Nd2 {[%emt 0:06:48]} Nbd7 {[%emt 0:02:37]} 15. Nxd7 {[%emt 0:14:28]} Rxd7 {[%emt 0:00:42]} 16. Nb3 {[%emt 0:00:03]} Bb6 {[%emt 0:00:48]} 17. Bd2 {[%emt 0:06:14]} Rfd8 {[%emt 0:06:43]} 18. Bc3 {[%emt 0:25:46]} Ne4 {[%emt 0:03:48]} 19. Bd4 {[%emt 0:01:00]} Bxd4 {[%emt 0:00:34]} 20. Nxd4 {[%emt 0:03:29]} Rc8 {[%emt 0:06:33]} 21. Rhc1 {[%emt 0:01:38]} Rdc7 {[%emt 0:01:35]} 22. Rxc7 {[%emt 0:04:12]} Rxc7 {[%emt 0:00:08]} 23. Rd1 {[%emt 0:02:50]} g6 {[%emt 0:02:15]} 24. f3 {[%emt 0:01:34]} Nf6 {[%emt 0:01:19]} 25. e4 {[%emt 0:00:42]} Kf8 {[%emt 0:07:07]} 26. Nb3 {[%emt 0:00:23]} Ke7 {[%emt 0:01:47]} 27. Rc1 {[%emt 0:00:46]} Rxc1 {[%emt 0:00:44]} 28. Nxc1 {[%emt 0:00:01]} Nd7 {[%emt 0:00:33]} 29. Nd3 {[%emt 0:00:12]} Kd6 {[%emt 0:01:13]} 1/2-1/2

[Event "33rd Croatian Junior League 2024"]
[Site "Novalja"]
[Date "2024.04.04"]
[Round "5.4"]
[White "Sosic, Zvan"]
[Black "Cvetkovic, Erik"]
[Result "1-0"]
[ECO "B51"]
[WhiteElo "1868"]
[BlackElo "1851"]
[Annotator "NA RC"]
[PlyCount "85"]
[EventDate "2024.03.28"]
[EventType "team-tourn"]
[EventCountry "CRO"]
[SourceTitle "playchess.com"]
[Source "ChessBase"]
[SourceQuality "1"]
[TimeControl "5400+30"]

1. e4 {[%emt 0:00:02]} c5 {[%emt 0:01:32]} 2. Nf3 {[%emt 0:00:07]} d6 {[%emt 0:00:05]} 3. Bb5+ {[%emt 0:00:04]} Nd7 {[%emt 0:00:07]} 4. d4 {[%emt 0:00:11]} cxd4 {[%emt 0:00:06]} 5. Qxd4 {[%emt 0:00:05]} a6 {[%emt 0:00:12]} 6. Bxd7+ {[%emt 0:00:04]} Bxd7 {[%emt 0:00:04]} 7. c4 {[%emt 0:00:05]} Nf6 {[%emt 0:00:36]} 8. Nc3 {[%emt 0:00:07]} g6 {[%emt 0:00:04]} 9. O-O {[%emt 0:00:07]} Bg7 {[%emt 0:00:03]} 10. Bg5 {[%emt 0:00:20]} O-O {[%emt 0:05:28]} 11. Qd3 {[%emt 0:01:22] [#]} b5 $1 {[%emt 0:08:03]} 12. cxb5 {[%emt 0:07:00]} axb5 {[%emt 0:00:36]} 13. a3 {[%emt 0:00:06]} Qb6 {[%emt 0:03:29]} 14. Bxf6 $1 {[%emt 0:02:37]} exf6 {[%emt 0:09:14]} 15. Rfd1 {[%emt 0:02:35]} Ra6 {[%emt 0:00:36] [#]} 16. Nd4 $16 {[%emt 0:01:38]} Rb8 {[%emt 0:04:26]} 17. Nd5 {[%emt 0:00:43]} Qa7 {[%emt 0:10:12]} 18. Rac1 {[%emt 0:02:36]} Rb7 {[%emt 0:17:30]} 19. Ne7+ {[%emt 0:04:41]} Kh8 {[%emt 0:00:28]} 20. Ndc6 {[%emt 0:00:27]} Qa8 {[%emt 0:00:50]} 21. Nb4 {[%emt 0:09:08]} Raa7 {[%emt 0:12:04]} 22. Nec6 {[%emt 0:03:12]} Bxc6 {[%emt 0:00:49]} 23. Nxc6 {[%emt 0:00:03]} Bh6 {[%emt 0:01:16]} 24. Qxd6 {[%emt 0:03:03]} Rd7 {[%emt 0:01:23]} 25. Qxf6+ {[%emt 0:03:09]} Bg7 {[%emt 0:02:58]} 26. Qf3 {[%emt 0:00:30]} Rac7 {[%emt 0:02:20]} 27. Rxd7 {[%emt 0:03:28]} Rxd7 {[%emt 0:00:03]} 28. e5 {[%emt 0:02:59]} Rc7 {[%emt 0:01:52]} 29. Qd5 {[%emt 0:01:29]} Bh6 {[%emt 0:02:08]} 30. Rc3 {[%emt 0:00:44]} Qb7 {[%emt 0:02:33]} 31. Qd8+ {[%emt 0:01:59]} Kg7 {[%emt 0:00:09]} 32. Ne7 {[%emt 0:51:49]} Rxe7 {[%emt 0:01:53]} 33. Rc8 {[%emt 0:00:00]} Qxc8 {[%emt 0:02:06]} 34. Qxc8 {[%emt 0:00:00]} Rxe5 {[%emt 0:00:04]} 35. Qc3 {[%emt 0:00:00]} f6 {[%emt 0:00:05]} 36. Qc7+ {[%emt 0:00:00]} Kg8 {[%emt 0:00:09]} 37. g3 {[%emt 0:00:00]} Bf8 {[%emt 0:00:16]} 38. Kg2 {[%emt 0:00:00]} Rc5 {[%emt 0:00:21]} 39. Qd7 {[%emt 0:00:00]} Rf5 {[%emt 0:01:01]} 40. f4 {[%emt 0:00:00]} Rc5 {[%emt 0:00:37]} 41. Kf3 {[%emt 0:00:00]} f5 {[%emt 0:00:23]} 42. h3 {[%emt 0:00:00]} Bg7 {[%emt 0:00:06]} 43. Qe6+ {[%emt 0:00:00]} 1-0

[Event "33rd Croatian Junior League 2024"]
[Site "Novalja"]
[Date "2024.04.04"]
[Round "5.5"]
[White "Denic, Marin"]
[Black "Gal, Andrej"]
[Result "0-1"]
[ECO "E42"]
[WhiteElo "2045"]
[BlackElo "2274"]
[Annotator "RC"]
[PlyCount "88"]
[EventDate "2024.03.28"]
[EventType "team-tourn"]
[EventCountry "CRO"]
[SourceTitle "playchess.com"]
[Source "ChessBase"]
[SourceQuality "1"]
[TimeControl "5400+30"]

1. d4 {[%emt 0:00:09]} Nf6 {[%emt 0:00:07]} 2. c4 {[%emt 0:00:07]} e6 {[%emt 0:00:44]} 3. Nc3 {[%emt 0:00:32]} Bb4 {[%emt 0:00:06]} 4. e3 {[%emt 0:00:52]} c5 {[%emt 0:01:37]} 5. Nge2 {[%emt 0:01:40]} b6 {[%emt 0:00:59]} 6. a3 {[%emt 0:00:55]} Ba5 {[%emt 0:00:05]} 7. Bd2 {[%emt 0:03:37]} O-O {[%emt 0:02:34]} 8. d5 {[%emt 0:14:07]} b5 {[%emt 0:10:33]} 9. Nf4 {[%emt 0:12:32]} bxc4 {[%emt 0:13:58]} 10. Bxc4 {[%emt 0:00:53]} e5 {[%emt 0:03:57]} 11. Nfe2 {[%emt 0:10:24]} d6 {[%emt 0:00:08]} 12. O-O {[%emt 0:00:40]} Nbd7 {[%emt 0:01:02]} 13. e4 {[%emt 0:04:31]} Rb8 {[%emt 0:03:49]} 14. Qc2 {[%emt 0:05:30]} Ne8 {[%emt 0:02:43]} 15. Bb5 {[%emt 0:04:38]} Nc7 {[%emt 0:03:55]} 16. Bxd7 {[%emt 0:02:49]} Bxd7 {[%emt 0:00:26]} 17. Ng3 {[%emt 0:00:29]} Nb5 {[%emt 0:06:47]} 18. Nxb5 {[%emt 0:00:41]} Rxb5 {[%emt 0:00:40]} 19. b4 {[%emt 0:03:24]} cxb4 {[%emt 0:01:03]} 20. Bxb4 {[%emt 0:00:08]} Bxb4 {[%emt 0:04:04]} 21. axb4 {[%emt 0:00:19]} Qb6 {[%emt 0:00:12]} 22. Qa4 {[%emt 0:03:38]} Ra8 {[%emt 0:00:18]} 23. Rfb1 {[%emt 0:01:22]} a5 {[%emt 0:02:46]} 24. Rc1 {[%emt 0:04:56]} g6 {[%emt 0:05:04]} 25. Nf1 {[%emt 0:05:14]} Qa7 {[%emt 0:03:16]} 26. Rc4 {[%emt 0:10:17]} Rc5 {[%emt 0:14:32]} 27. Qc2 {[%emt 0:00:50]} Rxc4 {[%emt 0:00:26]} 28. Qxc4 {[%emt 0:00:05]} a4 {[%emt 0:00:04]} 29. Ne3 {[%emt 0:03:46]} Qb6 {[%emt 0:01:39]} 30. Qc3 {[%emt 0:01:53]} Rc8 {[%emt 0:01:04]} 31. Qe1 {[%emt 0:00:07]} Qd4 {[%emt 0:00:44]} 32. b5 {[%emt 0:02:26]} Bxb5 {[%emt 0:02:03]} 33. Rb1 {[%emt 0:00:21]} Be8 {[%emt 0:03:17]} 34. Ng4 {[%emt 0:01:30]} Kg7 {[%emt 0:00:49]} 35. h4 {[%emt 0:00:53]} h5 {[%emt 0:00:50]} 36. Ne3 {[%emt 0:00:27]} Qxe4 {[%emt 0:01:30]} 37. Rb4 {[%emt 0:00:53]} Qd3 {[%emt 0:00:21]} 38. g4 {[%emt 0:00:40]} hxg4 {[%emt 0:00:32]} 39. Rxg4 {[%emt 0:01:02]} Bd7 {[%emt 0:00:33]} 40. Rg3 {[%emt 0:00:18]} Qe4 {[%emt 0:00:19]} 41. h5 {[%emt 0:00:50]} Rb8 {[%emt 0:01:09]} 42. h6+ {[%emt 0:00:25]} Kh7 {[%emt 0:00:25]} 43. Qd2 {[%emt 0:00:29]} Rb1+ {[%emt 0:00:12]} 44. Nf1 {[%emt 0:00:01]} Bb5 {[%emt 0:00:10]} 0-1

[Event "33rd Croatian Junior League 2024"]
[Site "Novalja"]
[Date "2024.04.04"]
[Round "5.6"]
[White "Franc, Borna"]
[Black "Mocic, Ivano"]
[Result "1-0"]
[ECO "B22"]
[WhiteElo "2221"]
[BlackElo "2011"]
[Annotator "RC"]
[PlyCount "88"]
[EventDate "2024.03.28"]
[EventType "team-tourn"]
[EventCountry "CRO"]
[SourceTitle "playchess.com"]
[Source "ChessBase"]
[SourceQuality "1"]
[TimeControl "5400+30"]

1. e4 {[%emt 0:00:10]} c5 {[%emt 0:00:06]} 2. c3 {[%emt 0:00:03]} Nf6 {[%emt 0:00:04]} 3. e5 {[%emt 0:00:03]} Nd5 {[%emt 0:00:06]} 4. d4 {[%emt 0:00:03]} cxd4 {[%emt 0:00:06]} 5. Nf3 {[%emt 0:00:04]} e6 {[%emt 0:00:39]} 6. cxd4 {[%emt 0:00:04]} d6 {[%emt 0:01:21]} 7. Bc4 {[%emt 0:00:18]} dxe5 {[%emt 0:01:01]} 8. Nxe5 {[%emt 0:00:46]} Bb4+ {[%emt 0:00:24]} 9. Bd2 {[%emt 0:00:21]} Bxd2+ {[%emt 0:08:38]} 10. Qxd2 {[%emt 0:00:32]} O-O {[%emt 0:00:30]} 11. O-O {[%emt 0:00:21]} b6 {[%emt 0:04:02]} 12. Nc3 {[%emt 0:04:11]} Bb7 {[%emt 0:07:43]} 13. Rac1 {[%emt 0:00:07]} Nxc3 {[%emt 0:04:03]} 14. Rxc3 {[%emt 0:02:50]} Nd7 {[%emt 0:12:58]} 15. Qf4 {[%emt 0:01:42]} Qf6 {[%emt 0:06:59]} 16. Qg3 {[%emt 0:00:26]} Rfd8 {[%emt 0:04:27]} 17. Bb3 {[%emt 0:04:41]} Nxe5 {[%emt 0:04:17]} 18. dxe5 {[%emt 0:00:21]} Qe7 {[%emt 0:04:21]} 19. Qf4 {[%emt 0:00:21]} Rac8 {[%emt 0:01:25]} 20. Rg3 {[%emt 0:03:39]} Ba6 {[%emt 0:03:15]} 21. Re1 {[%emt 0:02:17]} Rd3 {[%emt 0:03:21]} 22. Qa4 {[%emt 0:02:38]} Qb7 {[%emt 0:03:48]} 23. Rxd3 {[%emt 0:02:17]} Bxd3 {[%emt 0:00:29]} 24. Qd4 {[%emt 0:01:00]} Bb5 {[%emt 0:02:50]} 25. h4 {[%emt 0:00:38]} Bc6 {[%emt 0:26:07]} 26. Rc1 {[%emt 0:03:05]} Bd5 {[%emt 0:00:00]} 27. Rd1 {[%emt 0:01:03]} Rd8 {[%emt 0:00:00]} 28. Qf4 {[%emt 0:01:45]} Rd7 {[%emt 0:00:00]} 29. Rd3 {[%emt 0:05:53]} Bxb3 {[%emt 0:00:00]} 30. Rxb3 {[%emt 0:01:38]} Rd1+ {[%emt 0:00:00]} 31. Kh2 {[%emt 0:00:08]} Qd7 {[%emt 0:00:00]} 32. Rg3 {[%emt 0:01:28]} Rd3 {[%emt 0:00:00]} 33. Qe4 {[%emt 0:00:57]} Rd5 {[%emt 0:00:00]} 34. h5 {[%emt 0:01:14]} g6 {[%emt 0:00:00]} 35. Qf4 {[%emt 0:03:00]} Rd4 {[%emt 0:00:00]} 36. Qf6 {[%emt 0:00:34]} Qd8 {[%emt 0:00:00]} 37. Rc3 {[%emt 0:00:21]} Qf8 {[%emt 0:02:59]} 38. f4 {[%emt 0:04:23]} Rd2 {[%emt 0:01:25]} 39. hxg6 {[%emt 0:00:33]} fxg6 {[%emt 0:01:56]} 40. Qxe6+ {[%emt 0:00:11]} Kg7 {[%emt 0:00:26]} 41. Rc7+ {[%emt 0:00:10]} Kh8 {[%emt 0:00:36]} 42. Qg4 {[%emt 0:08:32]} Qh6+ {[%emt 0:00:25]} 43. Kg1 {[%emt 0:00:04]} Qf8 {[%emt 0:00:39]} 44. Qh4 {[%emt 0:00:42]} Rd4 {[%emt 0:00:23]} 1-0

[Event "33rd Croatian Junior League 2024"]
[Site "Novalja"]
[Date "2024.04.04"]
[Round "5.7"]
[White "Petricevic, Mateo"]
[Black "Marfat, Ivan"]
[Result "0-1"]
[ECO "D36"]
[WhiteElo "2036"]
[BlackElo "1903"]
[Annotator "RC"]
[PlyCount "86"]
[EventDate "2024.03.28"]
[EventType "team-tourn"]
[EventCountry "CRO"]
[SourceTitle "playchess.com"]
[Source "ChessBase"]
[SourceQuality "1"]
[TimeControl "5400+30"]

1. d4 {[%emt 0:00:06]} d5 {[%emt 0:00:06]} 2. c4 {[%emt 0:00:27]} e6 {[%emt 0:00:08]} 3. Nc3 {[%emt 0:00:13]} c6 {[%emt 0:00:05]} 4. cxd5 {[%emt 0:01:24]} exd5 {[%emt 0:01:04]} 5. Qc2 {[%emt 0:05:48]} Ne7 {[%emt 0:02:29]} 6. Bg5 {[%emt 0:04:26]} h6 {[%emt 0:02:10]} 7. Bxe7 {[%emt 0:00:43]} Bxe7 {[%emt 0:00:02]} 8. e3 {[%emt 0:01:22]} O-O {[%emt 0:05:15]} 9. Bd3 {[%emt 0:04:21]} Re8 {[%emt 0:04:01]} 10. Nf3 {[%emt 0:03:26]} Nd7 {[%emt 0:03:01]} 11. O-O {[%emt 0:01:43]} Nf6 {[%emt 0:00:56]} 12. h3 {[%emt 0:00:22]} Bd6 {[%emt 0:01:15]} 13. Rab1 {[%emt 0:11:36]} a5 {[%emt 0:04:58]} 14. Rfe1 {[%emt 0:05:46]} Be6 {[%emt 0:11:21]} 15. a3 {[%emt 0:06:54]} Qe7 {[%emt 0:11:21]} 16. Nd2 {[%emt 0:16:04]} Qd7 {[%emt 0:07:52]} 17. e4 {[%emt 0:13:10]} dxe4 {[%emt 0:00:21]} 18. Ndxe4 {[%emt 0:00:16]} Nxe4 {[%emt 0:04:43]} 19. Bxe4 {[%emt 0:03:03]} Bc7 {[%emt 0:08:50]} 20. d5 {[%emt 0:06:53]} cxd5 {[%emt 0:01:52]} 21. Red1 {[%emt 0:00:22]} Qd6 {[%emt 0:09:45]} 22. g3 {[%emt 0:00:37]} Bb6 {[%emt 0:00:03]} 23. Kg2 {[%emt 0:04:18]} Rac8 {[%emt 0:04:00]} 24. Qd2 {[%emt 0:02:25]} d4 {[%emt 0:00:35]} 25. Bxb7 {[%emt 0:01:53]} Bxh3+ {[%emt 0:00:15]} 26. Kh2 {[%emt 0:02:02]} Rb8 {[%emt 0:00:42]} 27. Bh1 {[%emt 0:01:15]} Bf5 {[%emt 0:00:34]} 28. Rbc1 {[%emt 0:00:32]} Qg6 {[%emt 0:00:18]} 29. Nd5 {[%emt 0:00:48]} d3 {[%emt 0:06:52]} 30. Re1 {[%emt 0:00:31]} Bd4 {[%emt 0:01:01]} 31. b4 {[%emt 0:01:22]} axb4 {[%emt 0:04:50]} 32. axb4 {[%emt 0:00:02]} Qd6 {[%emt 0:01:45]} 33. b5 {[%emt 0:01:39]} Rxe1 {[%emt 0:00:35]} 34. Rxe1 {[%emt 0:00:02]} Rxb5 {[%emt 0:00:15]} 35. Ne7+ {[%emt 0:00:13]} Kf8 {[%emt 0:01:11]} 36. Qa2 {[%emt 0:01:33]} g6 {[%emt 0:02:40]} 37. Qa8+ {[%emt 0:00:36]} Rb8 {[%emt 0:00:41]} 38. Qa4 {[%emt 0:00:40]} Bxf2 {[%emt 0:00:28]} 39. Nxf5 {[%emt 0:00:16]} gxf5 {[%emt 0:00:06]} 40. Rg1 {[%emt 0:00:49]} Bxg1+ {[%emt 0:00:06]} 41. Kh3 {[%emt 0:00:29]} Bf2 {[%emt 0:00:15]} 42. Qh4 {[%emt 0:00:32]} Rb4 {[%emt 0:00:22]} 43. Qh5 {[%emt 0:00:30]} Qxg3# {[%emt 0:00:37]} 0-1

[Event "33rd Croatian Junior League 2024"]
[Site "Novalja"]
[Date "2024.04.04"]
[Round "5.8"]
[White "Mesic, Josip"]
[Black "Kurtovic, Darko"]
[Result "1/2-1/2"]
[ECO "A39"]
[WhiteElo "1745"]
[BlackElo "1969"]
[Annotator "RC"]
[PlyCount "218"]
[EventDate "2024.03.28"]
[EventType "team-tourn"]
[EventCountry "CRO"]
[SourceTitle "playchess.com"]
[Source "ChessBase"]
[SourceQuality "1"]
[TimeControl "5400+30"]

1. d4 {[%emt 0:00:59]} Nf6 {[%emt 0:00:02]} 2. c4 {[%emt 0:00:24]} g6 {[%emt 0:00:08]} 3. g3 {[%emt 0:00:10]} c5 {[%emt 0:00:19]} 4. Nf3 {[%emt 0:00:20]} cxd4 {[%emt 0:00:08]} 5. Nxd4 {[%emt 0:00:09]} Bg7 {[%emt 0:00:51]} 6. Bg2 {[%emt 0:00:11]} Nc6 {[%emt 0:00:20]} 7. O-O {[%emt 0:03:02]} O-O {[%emt 0:00:43]} 8. Nc3 {[%emt 0:01:08]} Qa5 {[%emt 0:05:26]} 9. Nxc6 {[%emt 0:07:35]} bxc6 {[%emt 0:00:20]} 10. a3 {[%emt 0:00:13]} Ba6 {[%emt 0:01:35]} 11. Qd3 {[%emt 0:08:55]} d5 {[%emt 0:00:43]} 12. b4 {[%emt 0:04:44]} Qd8 {[%emt 0:11:12]} 13. b5 {[%emt 0:03:31]} cxb5 {[%emt 0:00:40]} 14. cxb5 {[%emt 0:00:23]} Bb7 {[%emt 0:00:16]} 15. Bb2 {[%emt 0:03:16]} Ng4 {[%emt 0:12:18]} 16. Na4 {[%emt 0:02:10]} Ne5 {[%emt 0:04:48]} 17. Qb3 {[%emt 0:04:40]} e6 {[%emt 0:14:34]} 18. Nc5 {[%emt 0:02:03]} Qe7 {[%emt 0:00:49]} 19. Rac1 {[%emt 0:01:46]} Rac8 {[%emt 0:02:16]} 20. Nxb7 {[%emt 0:05:33]} Qxb7 {[%emt 0:00:16]} 21. Kh1 {[%emt 0:02:56]} Rb8 {[%emt 0:05:03]} 22. Rc5 {[%emt 0:02:32]} Qb6 {[%emt 0:04:18]} 23. Bd4 {[%emt 0:02:12]} Nc4 {[%emt 0:05:39]} 24. Bxg7 {[%emt 0:09:14]} Qxc5 {[%emt 0:00:42]} 25. Bxf8 {[%emt 0:00:21]} Rxf8 {[%emt 0:00:19]} 26. Qb4 {[%emt 0:09:42]} Qxb4 {[%emt 0:00:48]} 27. axb4 {[%emt 0:00:03]} Rb8 {[%emt 0:00:04]} 28. Ra1 {[%emt 0:01:06]} Rxb5 {[%emt 0:00:29]} 29. Rxa7 {[%emt 0:00:34]} Rxb4 {[%emt 0:00:08]} 30. Bf3 {[%emt 0:00:41]} Ne5 {[%emt 0:01:18]} 31. Kg2 {[%emt 0:00:34]} Rb3 {[%emt 0:00:26]} 32. e3 {[%emt 0:01:28]} Rb2 {[%emt 0:00:12]} 33. Ra1 {[%emt 0:00:36]} Nd3 {[%emt 0:00:12]} 34. Rf1 {[%emt 0:00:27]} Kg7 {[%emt 0:00:21]} 35. Bd1 {[%emt 0:00:58]} Kf6 {[%emt 0:02:55]} 36. Ba4 {[%emt 0:00:35]} Ke7 {[%emt 0:04:29]} 37. h4 {[%emt 0:00:30]} Ne5 {[%emt 0:02:25]} 38. Bd1 {[%emt 0:02:48]} Kd6 {[%emt 0:02:26]} 39. Ba4 {[%emt 0:00:57]} Ng4 {[%emt 0:02:09]} 40. Kg1 {[%emt 0:01:47]} Rd2 {[%emt 0:00:26]} 41. Be8 {[%emt 0:00:57]} Ke7 {[%emt 0:01:22]} 42. Ba4 {[%emt 0:00:09]} h6 {[%emt 0:01:13]} 43. Bc6 {[%emt 0:00:32]} Ra2 {[%emt 0:03:11]} 44. Bb5 {[%emt 0:00:30]} Kd6 {[%emt 0:02:37]} 45. Be8 {[%emt 0:00:50]} Ra5 {[%emt 0:03:28]} 46. Bxf7 {[%emt 0:06:34]} Ne5 {[%emt 0:00:02]} 47. Bg8 {[%emt 0:00:13]} Ra8 {[%emt 0:00:05]} 48. f4 {[%emt 0:01:16]} Nd7 {[%emt 0:02:21]} 49. Bf7 {[%emt 0:00:47]} Nf8 {[%emt 0:00:16]} 50. h5 {[%emt 0:00:27]} gxh5 {[%emt 0:00:28]} 51. Bxh5 {[%emt 0:00:11]} Ra3 {[%emt 0:00:07]} 52. Kf2 {[%emt 0:00:22]} Nd7 {[%emt 0:00:05]} 53. Rh1 {[%emt 0:00:43]} Nf6 {[%emt 0:02:14]} 54. Be2 {[%emt 0:00:27]} d4 {[%emt 0:01:42]} 55. exd4 {[%emt 0:01:36]} Ne4+ {[%emt 0:00:09]} 56. Kg2 {[%emt 0:00:58]} Rxg3+ {[%emt 0:03:50]} 57. Kf1 {[%emt 0:00:29]} Rg6 {[%emt 0:01:28]} 58. Bd3 {[%emt 0:02:29]} Kd5 {[%emt 0:00:26]} 59. Ke2 {[%emt 0:04:58]} Kxd4 {[%emt 0:01:07]} 60. Bxe4 {[%emt 0:00:36]} Kxe4 {[%emt 0:00:06]} 61. Rh4 {[%emt 0:00:21]} Rg2+ {[%emt 0:00:16]} 62. Kf1 {[%emt 0:00:21]} Rg6 {[%emt 0:00:01]} 63. Ke2 {[%emt 0:00:15]} Rf6 {[%emt 0:00:06]} 64. Kd2 {[%emt 0:00:21]} Kf3 {[%emt 0:00:06]} 65. Kd3 {[%emt 0:01:03]} Kg3 {[%emt 0:00:04]} 66. Rh1 {[%emt 0:00:31]} Kxf4 {[%emt 0:00:05]} 67. Rf1+ {[%emt 0:00:08]} Kg5 {[%emt 0:00:01]} 68. Rg1+ {[%emt 0:00:32]} Kh5 {[%emt 0:00:48]} 69. Ke4 {[%emt 0:00:15]} Rf5 {[%emt 0:01:00]} 70. Rh1+ {[%emt 0:00:10]} Kg6 {[%emt 0:00:03]} 71. Rh2 {[%emt 0:01:00]} h5 {[%emt 0:00:25]} 72. Rg2+ {[%emt 0:00:29]} Kf6 {[%emt 0:00:51]} 73. Rh2 {[%emt 0:00:19]} Kg5 {[%emt 0:03:12]} 74. Rg2+ {[%emt 0:00:06]} Kf6 {[%emt 0:00:18]} 75. Rh2 {[%emt 0:00:15]} Re5+ {[%emt 0:00:40]} 76. Kf4 {[%emt 0:00:17]} Ra5 {[%emt 0:00:06]} 77. Rb2 {[%emt 0:00:49]} Ra4+ {[%emt 0:00:05]} 78. Kg3 {[%emt 0:00:11]} Rd4 {[%emt 0:00:26]} 79. Rb8 {[%emt 0:00:20]} Kf5 {[%emt 0:00:38]} 80. Rf8+ {[%emt 0:00:10]} Ke5 {[%emt 0:00:43]} 81. Kf3 {[%emt 0:00:32]} Rd3+ {[%emt 0:00:10]} 82. Ke2 {[%emt 0:00:18]} Rh3 {[%emt 0:00:38]} 83. Rh8 {[%emt 0:00:15]} Ke4 {[%emt 0:00:20]} 84. Ra8 {[%emt 0:00:27]} Rh2+ {[%emt 0:00:07]} 85. Kf1 {[%emt 0:00:08]} e5 {[%emt 0:00:11]} 86. Ra3 {[%emt 0:00:18]} Kf4 {[%emt 0:00:15]} 87. Rb3 {[%emt 0:00:14]} e4 {[%emt 0:00:26]} 88. Ra3 {[%emt 0:00:04]} h4 {[%emt 0:00:51]} 89. Rb3 {[%emt 0:00:15]} Kg4 {[%emt 0:02:15]} 90. Re3 {[%emt 0:00:36]} Kf4 {[%emt 0:00:01]} 91. Ra3 {[%emt 0:00:15]} Rh1+ {[%emt 0:01:22]} 92. Kg2 {[%emt 0:00:35]} Rd1 {[%emt 0:00:07]} 93. Rh3 {[%emt 0:00:48]} Rd2+ {[%emt 0:00:36]} 94. Kf1 {[%emt 0:00:22]} Kg4 {[%emt 0:00:41]} 95. Re3 {[%emt 0:00:27]} Kf4 {[%emt 0:00:00]} 96. Rh3 {[%emt 0:00:18]} Rc2 {[%emt 0:01:07]} 97. Rxh4+ {[%emt 0:01:15]} Ke3 {[%emt 0:00:17]} 98. Rh3+ {[%emt 0:00:09]} Kd4 {[%emt 0:00:19]} 99. Ke1 {[%emt 0:00:09]} Rc3 {[%emt 0:00:15]} 100. Rxc3 {[%emt 0:00:20]} Kxc3 {[%emt 0:00:01]} 101. Ke2 {[%emt 0:00:10]} Kd4 {[%emt 0:00:01]} 102. Kd2 {[%emt 0:00:17]} e3+ {[%emt 0:00:03]} 103. Ke2 {[%emt 0:00:08]} Ke4 {[%emt 0:00:02]} 104. Ke1 {[%emt 0:00:11]} Kf3 {[%emt 0:00:03]} 105. Kf1 {[%emt 0:00:17]} Ke4 {[%emt 0:00:05]} 106. Ke2 {[%emt 0:00:09]} Kd4 {[%emt 0:00:02]} 107. Ke1 {[%emt 0:00:20]} Kd3 {[%emt 0:00:02]} 108. Kd1 {[%emt 0:00:18]} e2+ {[%emt 0:00:02]} 109. Ke1 {[%emt 0:00:11]} Ke3 {[%emt 0:00:03]} 1/2-1/2

[Event "33rd Croatian Junior League 2024"]
[Site "Novalja"]
[Date "2024.04.04"]
[Round "5.9"]
[White "Vucenovic, Damian"]
[Black "Maravic, Ivan"]
[Result "1-0"]
[ECO "C55"]
[WhiteElo "2145"]
[BlackElo "2057"]
[Annotator "RC"]
[PlyCount "99"]
[EventDate "2024.03.28"]
[EventType "team-tourn"]
[EventCountry "CRO"]
[SourceTitle "playchess.com"]
[Source "ChessBase"]
[SourceQuality "1"]
[TimeControl "5400+30"]

1. e4 {[%emt 0:00:34]} e5 {[%emt 0:00:12]} 2. Nf3 {[%emt 0:00:19]} Nc6 {[%emt 0:00:24]} 3. Bc4 {[%emt 0:00:14]} Nf6 {[%emt 0:00:18]} 4. d3 {[%emt 0:00:42]} Be7 {[%emt 0:00:58]} 5. O-O {[%emt 0:00:29]} O-O {[%emt 0:00:29]} 6. Re1 {[%emt 0:01:15]} d6 {[%emt 0:00:57]} 7. a4 {[%emt 0:02:50]} Na5 {[%emt 0:00:57]} 8. Ba2 {[%emt 0:00:59]} c5 {[%emt 0:01:14]} 9. Nbd2 {[%emt 0:02:15]} h6 {[%emt 0:05:49]} 10. Nf1 {[%emt 0:01:00]} Be6 {[%emt 0:01:34]} 11. Ng3 {[%emt 0:02:31]} Nc6 {[%emt 0:03:32]} 12. c3 {[%emt 0:01:58]} Bxa2 {[%emt 0:08:10]} 13. Rxa2 {[%emt 0:00:07]} Re8 {[%emt 0:00:03]} 14. Ra1 {[%emt 0:19:47]} Bf8 {[%emt 0:02:24]} 15. Bd2 {[%emt 0:05:44]} d5 {[%emt 0:02:28]} 16. Qb3 {[%emt 0:06:07]} c4 {[%emt 0:12:27]} 17. dxc4 {[%emt 0:03:44]} Na5 {[%emt 0:00:18]} 18. Qc2 {[%emt 0:01:15]} dxc4 {[%emt 0:00:47]} 19. Rad1 {[%emt 0:00:39]} Qc7 {[%emt 0:02:04]} 20. Nf5 {[%emt 0:05:11]} Nb3 {[%emt 0:03:41]} 21. N3h4 {[%emt 0:08:44]} Rad8 {[%emt 0:06:17]} 22. Be3 {[%emt 0:05:17]} a6 {[%emt 0:03:31]} 23. Qe2 {[%emt 0:01:47]} Qc6 {[%emt 0:03:32]} 24. Qf3 {[%emt 0:07:24]} Kh7 {[%emt 0:11:55]} 25. Ng3 {[%emt 0:02:05]} Qe6 {[%emt 0:02:07]} 26. h3 {[%emt 0:03:09]} Bc5 {[%emt 0:03:38]} 27. Nhf5 {[%emt 0:01:12]} Bxe3 {[%emt 0:01:09]} 28. Qxe3 {[%emt 0:04:24]} Ng8 {[%emt 0:03:26]} 29. Nh5 {[%emt 0:04:35]} g6 {[%emt 0:10:42]} 30. Nhg7 {[%emt 0:00:57]} Qc6 {[%emt 0:02:43]} 31. Nxe8 {[%emt 0:00:09]} Rxe8 {[%emt 0:00:17]} 32. Nd6 {[%emt 0:02:10]} Re7 {[%emt 0:00:58]} 33. Qe2 {[%emt 0:02:16]} b5 {[%emt 0:00:59]} 34. axb5 {[%emt 0:00:18]} axb5 {[%emt 0:00:04]} 35. Qf3 {[%emt 0:00:22]} Nc5 {[%emt 0:04:17]} 36. Rd5 {[%emt 0:02:29]} Nd3 {[%emt 0:01:33]} 37. Rd1 {[%emt 0:00:49]} Nf4 {[%emt 0:01:24]} 38. Rxb5 {[%emt 0:01:18]} Rd7 {[%emt 0:00:34]} 39. Rxe5 {[%emt 0:01:03]} Rxd6 {[%emt 0:00:33]} 40. Rxd6 {[%emt 0:01:19]} Qxd6 {[%emt 0:00:05]} 41. Ra5 {[%emt 0:00:36]} g5 {[%emt 0:01:34]} 42. g3 {[%emt 0:00:30]} Qd3 {[%emt 0:00:42]} 43. Qg4 {[%emt 0:00:43]} Ne2+ {[%emt 0:00:37]} 44. Kg2 {[%emt 0:00:07]} Qd1 {[%emt 0:00:17]} 45. Qf5+ {[%emt 0:00:50]} Kg7 {[%emt 0:00:05]} 46. Ra7 {[%emt 0:00:22]} Qg1+ {[%emt 0:01:09]} 47. Kf3 {[%emt 0:00:04]} Nd4+ {[%emt 0:00:32]} 48. cxd4 {[%emt 0:00:08]} Qh1+ {[%emt 0:00:11]} 49. Ke2 {[%emt 0:00:19]} Nf6 {[%emt 0:00:30]} 50. e5 {[%emt 0:00:18]} 1-0